bitfinex/quotes_ETHUSD_20260304
["timestamp","ask_amount","ask_price","bid_price","bid_amount"]
[1772624042998,0.909,2069.1,2068.3,2.0041709]
[1772624042999,0.58194648,2069.1,2068.3,2.0041709]
[1772624043204,0.57594354,2068.9,2068.3,2.0041709]
[1772624043508,0.57594354,2068.9,2068.3,0.001]
[1772624047605,0.57594354,2068.9,2068.0,0.001]
[1772624047984,0.54521953,2068.7,2068.0,0.001]
[1772624048703,0.54521953,2068.5,2068.0,0.001]
[1772624049087,0.53756559,2068.3,2067.8,0.001]
[1772624049290,0.53756559,2068.0,2067.4,0.001]
[1772624049489,0.53756559,2068.0,2067.0,2.0041709]
[1772624050311,0.53756559,2068.0,2067.3,2.0041709]
[1772624052085,0.53756559,2068.0,2067.3,0.001]
[1772624052814,0.51898775,2067.9,2067.3,0.001]
[1772624053824,0.51898775,2067.9,2067.1,0.001]
[1772624054018,0.51898775,2067.9,2067.1,2.0041709]
[1772624055615,0.51898775,2067.9,2067.5,0.001]
[1772624055787,0.51898775,2067.9,2067.1,2.0041709]
[1772624056200,0.51898775,2067.9,2067.3,0.001]
[1772624057317,0.48902985,2068.2,2067.3,2.0041709]
[1772624057520,0.48902985,2068.0,2067.3,0.001]
[1772624057890,0.48902985,2068.0,2067.1,0.001]
[1772624059510,0.48902985,2068.0,2066.9,2.0041709]
[1772624059511,0.47578195,2067.4,2066.9,0.001]
[1772624059705,0.47578195,2067.4,2065.0,0.794]
[1772624059706,0.47578195,2067.3,2066.4,1.8212096]
[1772624059908,0.47066396,2067.1,2066.2,1.8212096]
[1772624060129,0.47066396,2066.8,2064.9,0.003]
[1772624060434,0.47066396,2065.4,2064.1,1.8212096]
[1772624060635,1.51128243,2065.2,2064.1,1.8212096]
[1772624060840,0.47066396,2064.6,2064.0,0.18893168]
[1772624060992,0.47066396,2064.6,2063.0,1.8212096]
[1772624060993,0.46569912,2064.4,2063.2,1.8212096]
[1772624061194,1.51128243,2063.7,2062.5,1.8212096]
[1772624061413,1.82061598,2062.6,2061.5,0.1624788]
[1772624061618,1.82061598,2062.6,2060.0,80.0]
[1772624061619,1.82061598,2061.5,2060.3,0.34504977]
[1772624061818,1.82061598,2061.5,2057.9,0.25259734]
[1772624061819,1.82061598,2060.6,2057.9,0.25259734]
[1772624062025,1.82061598,2059.9,2058.0,1.8212096]
[1772624062200,1.82061598,2060.3,2058.6,1.8212096]
[1772624062399,1.51128243,2059.2,2057.5,1.8212096]
[1772624062621,1.82061598,2059.4,2057.5,1.8212096]
[1772624062924,1.82061598,2059.4,2057.4,3.05759757]
[1772624063241,2.97809646,2059.0,2057.4,3.05759757]
[1772624064211,4.11231033,2059.3,2057.8,2.89511877]
[1772624064448,2.97809646,2061.2,2058.8,2.89511877]
[1772624064750,3.64935071,2061.1,2059.0,2.89511877]
[1772624064898,3.74251271,2061.0,2059.0,2.89511877]
[1772624065228,2.97809646,2060.8,2059.2,2.89511877]
[1772624065699,1.16827581,2060.9,2059.4,2.89511877]
[1772624066320,1.16827581,2060.9,2059.6,2.89511877]
[1772624066634,2.97809646,2062.2,2060.0,2.89511877]
[1772624067134,2.97809646,2062.2,2060.2,2.89511877]
[1772624067327,2.97809646,2062.2,2060.3,3.69711877]
[1772624067729,2.97809646,2062.2,2060.4,2.89511877]
[1772624068122,2.97809646,2062.2,2060.1,2.7265029]
[1772624068123,2.97809646,2061.8,2060.1,2.7265029]
[1772624068323,3.04363246,2061.7,2059.9,2.89511877]
[1772624068538,3.04363246,2061.7,2060.5,0.001]
[1772624069526,3.04363246,2061.7,2060.3,0.001]
[1772624069527,2.97809646,2061.1,2060.3,0.001]
[1772624069728,2.97809646,2060.9,2060.3,0.001]
[1772624071519,0.14948499,2061.7,2060.3,0.001]
[1772624071520,2.97809646,2061.5,2060.3,0.001]
[1772624072404,2.97809646,2061.3,2060.3,0.001]
[1772624073608,2.97809646,2061.7,2060.3,0.001]
[1772624074229,2.97809646,2061.7,2060.3,2.89611877]
[1772624074417,2.51024615,2061.9,2060.3,2.89611877]
[1772624075035,2.51024615,2061.9,2060.4,0.794]
[1772624075239,2.97809646,2062.6,2060.5,2.89511877]
[1772624075642,2.97809646,2062.6,2060.7,2.89511877]
[1772624075848,3.30370796,2062.5,2060.7,2.89511877]
[1772624076347,3.30370796,2062.5,2060.8,2.89511877]
[1772624078821,0.3256115,2062.5,2060.8,2.89511877]
[1772624079245,0.3256115,2062.5,2061.0,2.89511877]
[1772624079441,0.3256115,2062.5,2061.2,2.89511877]
[1772624079748,3.30370796,2062.5,2060.4,2.89511877]
[1772624079957,3.30370796,2062.5,2060.6,2.96065477]
[1772624080132,0.3256115,2062.5,2060.8,2.89511877]
[1772624080331,0.3256115,2062.5,2061.2,2.89511877]
[1772624081060,2.97809646,2063.3,2061.2,0.14948499]
[1772624081227,2.97809646,2063.3,2061.3,2.89511877]
[1772624081425,0.002,2062.3,2061.5,2.89511877]
[1772624084534,0.002,2062.3,2061.6,2.89511877]
[1772624085954,0.002,2062.5,2061.6,2.89511877]
[1772624086642,0.002,2062.8,2061.6,2.89511877]
[1772624087269,0.002,2062.8,2061.8,2.89511877]
[1772624088775,5.4607101,2063.8,2062.2,2.88106101]
[1772624088939,5.4607101,2063.8,2062.4,2.88106101]
[1772624089139,5.4607101,2063.8,2062.4,2.73106101]
[1772624089140,2.51770594,2063.8,2062.4,2.73106101]
[1772624089371,2.94300416,2064.2,2062.4,2.73106101]
[1772624089889,2.94300416,2064.2,2062.6,2.88106101]
[1772624092643,2.94300416,2064.5,2062.6,2.88106101]
[1772624092976,1.8212096,2064.6,2063.0,2.88106101]
[1772624093636,2.94300416,2064.5,2063.0,2.88106101]
[1772624094375,0.002,2064.0,2063.0,2.88106101]
[1772624095890,0.002,2064.0,2063.1,2.88106101]
[1772624096975,2.94500416,2064.0,2062.7,2.88106101]
[1772624097691,2.94300416,2063.8,2062.6,0.001]
[1772624100346,2.94300416,2063.8,2062.6,2.88206101]
[1772624100552,2.73004318,2063.9,2062.6,2.88206101]
[1772624100771,5.67304734,2063.9,2062.6,2.88206101]
[1772624100971,2.94300416,2063.8,2062.6,2.88206101]
[1772624101277,2.94300416,2063.6,2062.6,0.001]
[1772624102078,5.67304734,2063.9,2062.6,2.88206101]
[1772624104180,2.94300416,2063.8,2062.6,2.88206101]
[1772624104680,2.94300416,2063.6,2062.6,0.001]
[1772624106101,2.85242338,2063.5,2062.6,0.001]
[1772624106474,5.79542754,2063.5,2062.6,0.001]
[1772624106794,2.85264458,2063.4,2062.6,0.001]
[1772624106995,2.85464458,2063.4,2062.6,0.001]
[1772624107671,3.38909602,2063.3,2062.6,0.001]
[1772624107873,2.85264458,2063.2,2062.6,0.001]
[1772624108065,2.94300416,2063.3,2062.6,0.001]
[1772624108264,3.30248482,2063.2,2062.6,0.001]
[1772624108470,2.94300416,2063.3,2062.6,0.001]
[1772624108671,2.94300416,2063.1,2062.4,0.001]
[1772624108900,6.24588141,2063.0,2062.4,0.001]
[1772624109078,3.30287725,2062.9,2062.4,0.001]
[1772624109276,2.94300416,2063.0,2062.4,0.001]
[1772624109277,2.85687832,2062.8,2062.4,0.001]
[1772624109498,3.3033225,2062.7,2062.4,0.001]
[1772624109699,2.94300416,2062.8,2062.4,0.001]
[1772624110002,3.30305286,2062.7,2062.4,0.001]
[1772624110191,2.85658033,2062.6,2062.4,0.001]
[1772624110392,2.94300416,2062.8,2062.4,0.001]
[1772624110590,3.30497124,2062.7,2062.4,0.001]
[1772624110768,3.30497124,2062.6,2062.4,0.001]
[1772624110973,2.8580724,2062.5,2062.4,0.001]
[1772624111174,2.8580724,2062.7,2062.4,0.001]
[1772624111400,0.44652109,2062.6,2062.4,0.001]
[1772624111570,2.94300416,2062.8,2062.4,0.001]
[1772624111773,3.30337149,2062.7,2062.4,0.001]
[1772624111986,2.85694063,2062.6,2062.4,0.001]
[1772624112206,5.21278963,2063.0,2062.4,0.001]
[1772624112401,3.30434621,2062.9,2062.4,0.001]
[1772624112702,3.30434621,2062.8,2062.4,0.001]
[1772624112902,3.30434621,2062.7,2062.4,0.001]
[1772624113201,2.85777511,2062.6,2062.4,0.001]
[1772624113378,5.21278963,2062.9,2062.4,0.001]
[1772624113579,6.24683728,2062.8,2062.4,0.001]
[1772624113783,3.30383312,2062.7,2062.4,0.001]
[1772624113982,6.24670617,2062.6,2062.1,0.001]
[1772624114182,6.24649571,2062.5,2062.1,0.001]
[1772624114505,3.30349155,2062.4,2062.1,0.001]
[1772624114810,3.30349155,2062.3,2062.1,0.001]
[1772624114981,3.30349155,2062.2,2062.1,0.001]
[1772624115911,2.94300416,2062.5,2062.1,0.001]
[1772624116230,2.85359723,2062.4,2062.1,0.001]
[1772624116776,2.85359723,2062.4,2061.1,2.88106101]
[1772624116777,3.38888865,2062.3,2061.1,2.88106101]
[1772624116972,3.29948172,2062.2,2061.1,2.88106101]
[1772624117194,2.85359723,2062.1,2061.1,2.88106101]
[1772624117394,2.94300416,2062.3,2061.1,2.88106101]
[1772624117604,2.85053256,2062.2,2061.1,2.88106101]
[1772624117805,0.904,2062.4,2061.1,2.88106101]
[1772624117976,3.29417008,2062.3,2061.1,2.88106101]
[1772624118173,2.94300416,2062.6,2061.1,2.88106101]
[1772624118423,2.82917021,2062.9,2061.1,2.88106101]
[1772624118579,2.82917021,2062.9,2061.3,2.91026253]
[1772624119107,2.82917021,2062.9,2062.3,0.001]
[1772624119305,2.82917021,2063.2,2062.3,0.001]
[1772624119512,3.29342316,2063.1,2062.3,0.001]
[1772624119805,2.82917021,2063.2,2062.3,0.001]
[1772624120003,0.32959668,2063.4,2062.3,2.91126253]
[1772624120214,6.12228419,2063.3,2062.3,2.91126253]
[1772624120515,2.84805122,2063.2,2062.3,2.91126253]
[1772624122214,0.32959668,2063.4,2062.3,2.91126253]
[1772624122413,3.29193906,2063.3,2062.3,2.91126253]
[1772624122597,0.32959668,2063.4,2062.3,2.91126253]
[1772624123101,2.84854691,2063.3,2062.3,2.91126253]
[1772624123308,0.32959668,2063.4,2062.3,2.91126253]
[1772624124017,0.002,2063.6,2062.4,2.79277327]
[1772624124588,2.91498517,2063.4,2062.3,0.001]
[1772624124812,6.21060204,2063.3,2062.3,0.001]
[1772624125088,2.85034271,2063.2,2062.3,2.79377327]
[1772624126209,0.44588553,2063.1,2062.3,2.79377327]
[1772624126400,2.91498517,2063.3,2062.3,2.79377327]
[1772624126601,3.29961196,2063.2,2062.3,2.79377327]
[1772624126806,3.29961196,2063.1,2062.3,2.79377327]
[1772624127145,2.91498517,2063.3,2062.3,2.79377327]
[1772624127290,3.29999047,2063.2,2062.3,2.79377327]
[1772624127494,3.29999047,2063.1,2062.3,2.79377327]
[1772624127703,3.29994177,2063.0,2062.3,0.001]
[1772624127902,2.91498517,2063.2,2062.3,0.001]
[1772624128110,2.26978547,2063.3,2062.3,0.001]
[1772624128111,6.21471991,2063.1,2062.3,0.001]
[1772624128311,3.29973474,2063.0,2062.3,0.001]
[1772624128499,3.29973474,2062.9,2062.3,0.001]
[1772624128797,2.85382667,2062.8,2062.3,0.001]
[1772624129102,2.91498517,2063.1,2062.3,0.001]
[1772624129314,3.30004851,2063.0,2062.3,0.001]
[1772624129489,3.30004851,2062.9,2062.3,0.001]
[1772624129691,3.30007987,2062.8,2062.3,0.001]
[1772624129887,2.91498517,2063.1,2062.3,0.001]
[1772624130103,3.30057368,2063.0,2062.3,0.001]
[1772624130398,3.30057368,2062.9,2062.3,0.001]
[1772624130610,3.30057368,2062.8,2062.3,0.001]
[1772624130815,5.18477064,2063.1,2062.3,0.001]
[1772624131021,3.30160635,2063.0,2062.3,0.001]
[1772624131205,3.30160635,2062.9,2062.3,0.001]
[1772624131404,2.91498517,2062.7,2062.0,0.001]
[1772624131716,3.30160635,2062.6,2062.0,0.001]
[1772624132026,2.91498517,2062.7,2062.0,0.001]
[1772624132232,3.30157914,2062.6,2062.0,0.001]
[1772624132525,3.30157914,2062.5,2062.0,0.001]
[1772624132712,3.30157914,2062.4,2062.0,0.001]
[1772624132899,2.91498517,2062.6,2062.0,0.001]
[1772624133102,2.91498517,2062.4,2061.8,0.001]
[1772624133407,4.21298653,2062.5,2061.8,0.001]
[1772624133408,6.2159717,2062.3,2061.8,0.001]
[1772624133608,3.30098653,2062.2,2061.8,0.001]
[1772624133806,3.18178547,2062.5,2061.8,0.001]
[1772624134008,2.91498517,2062.3,2061.8,0.001]
[1772624134226,3.3001552,2062.2,2061.8,0.001]
[1772624134534,3.3001552,2062.1,2061.8,0.001]
[1772624134737,2.91498517,2062.3,2061.8,0.001]
[1772624135033,2.91498517,2062.0,2060.3,0.001]
[1772624135212,2.26978547,2061.7,2060.5,2.79377327]
[1772624135528,3.29970476,2061.6,2060.5,2.79377327]
[1772624135707,3.29970476,2061.5,2060.5,2.79377327]
[1772624135904,2.91498517,2061.6,2060.5,2.79377327]
[1772624136113,2.84978016,2061.5,2060.5,2.79377327]
[1772624136409,7.79900898,2061.9,2060.5,2.79377327]
[1772624136607,3.29363221,2061.8,2060.5,2.79377327]
[1772624136808,3.29363221,2061.7,2060.5,2.79377327]
[1772624137009,3.29363221,2061.6,2060.5,2.79377327]
[1772624137201,2.91498517,2061.8,2060.5,2.79377327]
[1772624137401,2.91498517,2061.6,2060.3,0.001]
[1772624137599,5.18477064,2061.3,2060.3,0.001]
[1772624137919,2.91498517,2061.1,2058.6,2.7265029]
[1772624138121,5.62980468,2061.0,2059.6,2.79277327]
[1772624138301,2.91498517,2061.2,2059.6,2.79277327]
[1772624138502,6.20203969,2061.1,2059.6,2.79277327]
[1772624138718,2.91498517,2060.9,2059.6,2.79277327]
[1772624140417,0.914,2061.3,2059.6,2.79277327]
[1772624140621,2.91498517,2061.6,2060.1,2.48503699]
[1772624140817,3.52923834,2061.9,2060.2,2.79277327]
[1772624141235,3.52923834,2061.9,2059.3,0.806]
[1772624141236,2.91498517,2061.1,2058.7,2.79277327]
[1772624141425,2.91498517,2061.0,2058.7,2.79277327]
[1772624141738,2.91498517,2060.8,2058.7,2.79277327]
[1772624141923,3.27864257,2060.9,2058.7,2.79277327]
[1772624141924,2.91498517,2060.6,2058.7,2.79277327]
[1772624142535,2.91498517,2060.6,2058.9,2.79277327]
[1772624143554,2.91498517,2060.6,2059.0,0.812]
[1772624143757,2.91498517,2060.6,2059.2,2.79277327]
[1772624144054,2.91498517,2060.6,2057.6,2.79277327]
[1772624144055,2.91498517,2059.3,2057.6,2.79277327]
[1772624144226,2.91498517,2059.3,2057.8,2.79277327]
[1772624144737,2.91498517,2059.7,2057.9,2.79277327]
[1772624145128,2.91498517,2059.7,2058.0,2.79277327]
[1772624145532,2.91498517,2059.7,2059.1,0.001]
[1772624145957,2.91498517,2059.7,2058.0,2.79277327]
[1772624146173,2.91498517,2059.7,2058.9,0.001]
[1772624149140,2.71198096,2060.4,2058.9,0.001]
[1772624150747,2.71198096,2060.4,2058.9,2.74872191]
[1772624151131,2.71198096,2060.4,2058.9,0.001]
[1772624152354,2.71198096,2060.4,2058.9,2.74872191]
[1772624154964,2.71198096,2060.2,2058.9,0.001]
[1772624158275,2.71198096,2060.2,2058.6,0.001]
[1772624158276,2.71198096,2060.0,2058.6,0.001]
[1772624158575,2.71198096,2059.8,2058.6,0.001]
[1772624158746,2.71198096,2059.8,2059.1,0.001]
[1772624159966,2.71398096,2060.2,2059.1,0.001]
[1772624160469,2.71198096,2060.0,2059.1,0.001]
[1772624160676,0.065536,2059.2,2057.4,0.1624788]
[1772624160976,2.71198096,2059.0,2057.4,2.91020071]
[1772624161469,2.71198096,2059.4,2057.4,2.91020071]
[1772624161670,2.71198096,2059.4,2057.5,2.74772191]
[1772624162483,2.82212359,2059.3,2057.5,2.74772191]
[1772624162779,2.71198096,2059.8,2057.7,2.74772191]
[1772624162976,2.71198096,2059.8,2057.9,2.74772191]
[1772624163276,5.97641314,2059.7,2058.2,2.74772191]
[1772624163461,2.71198096,2059.7,2058.2,2.74772191]
[1772624163648,2.71198096,2059.5,2057.9,2.74772191]
[1772624163849,2.71198096,2059.0,2057.5,2.74772191]
[1772624164446,1.60318493,2058.9,2057.5,2.74772191]
[1772624164947,4.31516589,2058.9,2057.5,2.74772191]
[1772624165472,4.31516589,2058.1,2056.7,2.74772191]
[1772624165842,2.26978547,2058.5,2056.2,0.815]
[1772624165843,2.71198096,2058.5,2057.0,2.74772191]
[1772624166171,3.26964715,2058.4,2057.0,2.74772191]
[1772624166347,2.82739215,2058.3,2057.0,2.74772191]
[1772624166676,2.71198096,2058.4,2057.0,2.74772191]
[1772624166974,2.82770328,2058.3,2057.3,2.74772191]
[1772624167277,1.60318493,2058.6,2054.9,7.18534635]
[1772624167585,2.71198096,2057.2,2055.7,2.74772191]
[1772624168093,2.71198096,2057.2,2056.0,3.07681628]
[1772624168245,2.71198096,2057.1,2055.6,2.74772191]
[1772624168442,2.71198096,2057.0,2055.6,2.74772191]
[1772624169352,0.0252,2057.3,2055.6,2.74772191]
[1772624169979,0.0252,2057.3,2055.8,2.74772191]
[1772624170669,0.0252,2057.3,2054.2,2.74772191]
[1772624170670,2.71198096,2057.2,2054.2,2.74772191]
[1772624170972,2.71198096,2055.8,2054.3,2.74772191]
[1772624171176,2.26233641,2056.1,2054.3,2.74772191]
[1772624171377,4.97431737,2056.6,2054.5,2.74772191]
[1772624171595,4.97431737,2056.6,2054.9,2.74772191]
[1772624171596,2.81767079,2056.5,2054.9,2.74772191]
[1772624172104,3.22855704,2057.4,2055.9,2.74772191]
[1772624172248,0.96622063,2057.4,2055.9,2.74772191]
[1772624172899,0.96622063,2057.4,2056.1,2.74772191]
[1772624173054,2.26233641,2058.2,2056.2,2.47773156]
[1772624173259,2.81925461,2058.0,2056.3,2.74772191]
[1772624173452,4.97431737,2058.3,2056.3,2.74772191]
[1772624173649,2.8203372,2058.2,2056.3,2.74772191]
[1772624173857,2.8203372,2058.2,2056.5,2.74772191]
[1772624174183,0.88235506,2058.6,2056.7,2.74772191]
[1772624174353,2.82152566,2058.5,2056.9,2.74772191]
[1772624174555,2.82152566,2058.5,2057.1,2.74772191]
[1772624174849,1.60318493,2057.5,2055.8,0.001]
[1772624175054,3.86552134,2057.2,2055.8,0.001]
[1772624175278,2.81978065,2057.1,2055.8,0.001]
[1772624175484,2.71198096,2057.3,2055.8,0.001]
[1772624175650,2.81794649,2057.2,2055.8,0.001]
[1772624177361,1.60318493,2056.8,2055.8,0.001]
[1772624177549,1.60318493,2056.4,2054.7,2.74772191]
[1772624177753,4.31516589,2056.4,2054.7,2.74772191]
[1772624177961,2.71198096,2056.4,2054.7,2.74772191]
[1772624178488,4.41422245,2056.3,2054.7,2.74772191]
[1772624178798,2.772887,2056.1,2054.2,2.47773156]
[1772624179004,2.772887,2056.1,2054.3,2.53858051]
[1772624179005,1.60318493,2055.9,2054.3,2.53858051]
[1772624179284,2.772887,2055.8,2054.3,2.53858051]
[1772624179856,2.772887,2055.1,2053.3,0.1624788]
[1772624180074,2.772887,2055.1,2052.4,2.53858051]
[1772624180075,2.80585497,2055.1,2052.4,2.53858051]
[1772624180268,3.86552134,2055.2,2052.4,2.53858051]
[1772624180269,1.60318493,2055.2,2052.4,2.53858051]
[1772624180517,2.772887,2055.8,2052.4,2.53858051]
[1772624180672,2.772887,2055.8,2053.6,2.53858051]
[1772624180997,3.711887,2056.3,2054.2,2.53858051]
[1772624181709,3.711887,2056.3,2054.1,2.53074976]
[1772624181710,3.711887,2056.3,2054.4,2.53858051]
[1772624182982,0.939,2056.3,2054.4,2.53858051]
[1772624183201,6.38714273,2056.8,2054.4,2.53858051]
[1772624183507,2.80004864,2056.7,2054.6,2.60956263]
[1772624184016,4.7839578,2056.8,2054.6,2.60956263]
[1772624184403,2.04083992,2056.8,2054.6,2.60956263]
[1772624184601,2.74311788,2057.1,2054.8,2.60956263]
[1772624184894,2.74311788,2057.1,2052.7,0.20980602]
[1772624184895,2.74311788,2055.6,2053.6,2.60956263]
[1772624185208,2.74311788,2055.5,2053.6,2.60956263]
[1772624185507,2.74311788,2055.3,2053.1,2.60956263]
[1772624185803,2.54418493,2055.6,2053.3,2.60956263]
[1772624186010,0.941,2055.6,2053.5,2.60956263]
[1772624186504,2.74311788,2055.8,2053.6,0.21502099]
[1772624186691,2.74311788,2055.8,2054.2,2.60956263]
[1772624186877,2.74311788,2056.3,2054.2,2.60956263]
[1772624187077,2.80084751,2056.2,2054.2,2.60956263]
[1772624187273,2.74311788,2056.1,2054.2,2.60956263]
[1772624187880,1.60318493,2056.4,2054.2,2.60956263]
[1772624188111,2.74511788,2057.0,2054.8,2.60956263]
[1772624188283,2.80333247,2056.9,2054.8,2.60956263]
[1772624189076,2.80333247,2056.9,2054.2,1.459]
[1772624189077,2.74311788,2055.3,2053.0,2.60956263]
[1772624189407,2.74311788,2054.9,2053.0,2.60956263]
[1772624190181,2.74311788,2055.3,2053.0,2.60956263]
[1772624190505,2.74311788,2055.3,2053.4,2.61056263]
[1772624190506,2.80286032,2055.2,2053.4,2.61056263]
[1772624190810,2.74311788,2055.3,2053.4,2.61056263]
[1772624191197,2.74311788,2054.4,2051.8,2.60956263]
[1772624191509,5.54529335,2054.3,2051.8,2.60956263]
[1772624191676,3.69011788,2054.3,2051.9,0.065536]
[1772624191877,2.74311788,2054.2,2052.2,2.60956263]
[1772624192705,0.95,2054.4,2052.2,2.60956263]
[1772624193389,1.60318493,2053.9,2051.6,2.60956263]
[1772624193589,2.80012659,2053.8,2051.6,2.60956263]
[1772624193818,3.69611788,2054.0,2051.6,2.60956263]
[1772624193999,2.74311788,2054.0,2051.8,2.60956263]
[1772624197689,2.74311788,2052.7,2050.5,2.55688794]
[1772624197886,2.74311788,2052.7,2050.6,2.60956263]
[1772624198214,2.74311788,2052.7,2050.5,2.55688794]
[1772624198215,0.963,2053.1,2050.8,2.60956263]
[1772624198516,2.74311788,2053.2,2051.2,2.60956263]
[1772624198888,0.43765209,2053.1,2051.2,2.60956263]
[1772624199118,0.43765209,2053.0,2051.2,2.60956263]
[1772624199428,2.74311788,2053.2,2051.2,2.60956263]
[1772624199429,0.43765209,2052.9,2051.2,2.60956263]
[1772624199619,2.74311788,2053.2,2051.2,2.60956263]
[1772624199910,0.43706408,2053.1,2051.2,2.60956263]
[1772624200119,0.43706408,2053.0,2051.2,2.60956263]
[1772624200315,2.26233641,2054.0,2051.4,2.60956263]
[1772624200485,0.43721212,2053.9,2052.1,2.55688794]
[1772624200689,0.43721212,2053.8,2052.2,2.60956263]
[1772624200917,2.74311788,2054.0,2052.2,2.60956263]
[1772624201105,0.43712912,2053.9,2052.2,2.60956263]
[1772624201413,0.002,2053.5,2052.2,2.60956263]
[1772624201795,0.002,2053.5,2051.7,2.60956263]
[1772624201796,0.43699873,2053.4,2051.7,2.60956263]
[1772624202006,0.43699873,2053.3,2051.7,2.60956263]
[1772624202314,2.74511788,2053.5,2051.7,2.60956263]
[1772624202516,0.4368918,2053.4,2051.7,2.60956263]
[1772624202716,0.4368918,2053.3,2051.7,2.60956263]
[1772624202905,2.74511788,2053.5,2051.7,2.60956263]
[1772624203232,0.43679843,2053.4,2051.7,2.60956263]
[1772624203395,0.43679843,2053.3,2051.7,2.60956263]
[1772624203597,2.74511788,2053.5,2051.7,2.60956263]
[1772624203798,0.43716439,2053.4,2051.7,2.60956263]
[1772624204099,0.43716439,2053.3,2051.7,2.60956263]
[1772624204305,2.74311788,2052.6,2051.4,0.001]
[1772624204621,0.43760742,2052.5,2051.4,0.001]
[1772624204808,4.34630281,2053.1,2051.4,0.001]
[1772624205006,0.43780377,2053.0,2051.4,0.001]
[1772624205217,0.43780377,2052.9,2051.4,0.001]
[1772624205391,0.43780377,2052.8,2051.4,0.001]
[1772624205593,0.43780377,2052.7,2051.4,0.001]
[1772624205894,0.43780377,2052.6,2051.4,0.001]
[1772624206114,0.43780377,2052.5,2051.4,0.001]
[1772624206287,0.43780377,2052.4,2051.4,0.001]
[1772624206486,0.43780377,2052.3,2051.4,0.001]
[1772624206720,2.74311788,2053.0,2051.4,0.001]
[1772624206920,0.43785207,2052.9,2051.4,0.001]
[1772624207093,0.43785207,2052.8,2051.4,0.001]
[1772624207293,0.43785207,2052.7,2051.4,0.001]
[1772624207494,0.43785207,2052.6,2051.4,0.001]
[1772624207821,0.43785207,2052.5,2051.4,0.001]
[1772624208022,0.43785207,2052.4,2051.4,2.61056263]
[1772624208186,0.43845553,2052.3,2051.4,2.61056263]
[1772624208386,2.74311788,2053.0,2051.4,2.61056263]
[1772624208621,3.00651319,2052.9,2051.4,0.001]
[1772624208804,3.00651319,2052.8,2051.4,0.001]
[1772624209005,0.43845757,2052.7,2051.4,0.001]
[1772624209210,2.56805562,2052.8,2051.4,0.001]
[1772624209211,0.43845757,2052.6,2051.4,0.001]
[1772624209509,3.00651319,2052.5,2051.4,0.001]
[1772624209817,0.43845757,2052.4,2051.4,0.001]
[1772624210018,0.43845757,2052.3,2051.4,0.001]
[1772624210219,0.43845757,2052.2,2051.4,0.001]
[1772624210517,0.43845757,2052.1,2051.4,0.001]
[1772624210724,2.56805562,2052.9,2051.4,0.001]
[1772624210904,5.80986691,2052.8,2051.4,0.001]
[1772624211106,0.43801633,2052.7,2051.4,0.001]
[1772624211326,3.00607195,2052.6,2051.4,0.001]
[1772624211518,0.43801633,2052.5,2051.4,0.001]
[1772624211712,0.43801633,2052.4,2051.4,0.001]
[1772624211920,0.43801633,2052.3,2051.4,0.001]
[1772624212110,0.43801633,2052.2,2051.4,0.001]
[1772624212310,0.43801633,2052.1,2051.4,0.001]
[1772624212624,0.43801633,2052.0,2051.4,0.001]
[1772624212796,2.56805562,2052.6,2051.4,0.001]
[1772624212992,0.4382532,2052.5,2051.4,0.001]
[1772624213193,0.973,2053.0,2051.4,0.001]
[1772624213194,3.00630882,2052.4,2051.4,0.001]
[1772624213518,0.4382532,2052.3,2051.4,0.001]
[1772624213715,0.4382532,2052.2,2051.4,0.001]
[1772624213911,4.83852134,2052.8,2049.3,2.49803643]
[1772624213912,3.00630882,2052.1,2049.3,2.49803643]
[1772624214137,2.59748415,2051.6,2049.3,2.49803643]
[1772624214294,0.4382532,2051.5,2049.3,2.49803643]
[1772624214493,0.4382532,2051.5,2049.0,0.71661612]
[1772624214494,0.4382532,2051.4,2049.7,2.49803643]
[1772624214720,2.59748415,2052.3,2050.3,2.49803643]
[1772624214925,0.43881136,2052.2,2050.3,2.49803643]
[1772624215124,0.43881136,2052.1,2050.3,2.49803643]
[1772624215425,0.43881136,2052.0,2050.3,2.49803643]
[1772624215621,0.43881136,2051.9,2050.3,2.49803643]
[1772624215796,0.43881136,2051.8,2051.6,0.001]
[1772624215999,0.43881136,2051.7,2050.7,2.49803643]
[1772624216331,0.43881136,2051.6,2051.4,0.001]
[1772624216500,0.43881136,2051.5,2051.4,0.001]
[1772624216701,5.16553977,2052.3,2051.4,0.001]
[1772624217098,5.38006787,2052.2,2051.4,0.001]
[1772624217299,2.81520896,2052.1,2051.4,0.001]
[1772624217825,2.56805562,2052.2,2051.4,0.001]
[1772624218025,2.81522094,2052.1,2051.4,0.001]
[1772624218228,2.82315214,2052.0,2050.2,5.05619918]
[1772624218412,2.82315214,2051.9,2050.2,5.05619918]
[1772624218608,2.82315214,2051.8,2050.2,5.05619918]
[1772624218812,2.82315214,2051.7,2050.2,5.05619918]
[1772624219014,4.83039203,2052.0,2050.2,2.55816275]
[1772624219218,4.83039203,2052.0,2050.3,2.49803643]
[1772624219219,2.82300245,2051.9,2050.3,2.49803643]
[1772624219418,2.56805562,2051.8,2049.8,2.49803643]
[1772624219617,4.83039203,2051.6,2049.8,2.49803643]
[1772624219843,2.82300245,2051.5,2049.8,2.49803643]
[1772624220436,2.56805562,2051.4,2049.8,2.49803643]
[1772624220636,2.56805562,2050.9,2049.3,2.49803643]
[1772624220837,4.83039203,2050.5,2049.2,0.1624788]
[1772624221037,2.82300245,2050.4,2049.2,0.1624788]
[1772624221229,2.56805562,2050.5,2049.2,0.1624788]
[1772624221429,2.81703736,2050.4,2049.2,0.1624788]
[1772624221636,2.56805562,2050.6,2049.2,0.1624788]
[1772624221935,2.81716478,2050.5,2049.2,0.1624788]
[1772624222455,2.56805562,2051.1,2049.2,2.66051523]
[1772624222655,4.83039203,2051.6,2049.4,2.49803643]
[1772624222858,2.81573139,2051.5,2049.4,2.49803643]
[1772624223365,2.81573139,2051.5,2049.6,2.49803643]
[1772624223867,2.26233641,2051.9,2049.9,2.49803643]
[1772624224060,2.81713281,2051.8,2049.9,2.49803643]
[1772624224221,2.81713281,2051.7,2049.9,2.49803643]
[1772624224556,2.26233641,2052.0,2049.9,2.49803643]
[1772624224851,2.8173055,2051.9,2049.9,2.49803643]
[1772624225224,4.85982056,2052.3,2050.3,2.49803643]
[1772624225429,2.81942386,2052.2,2050.3,2.49803643]
[1772624225629,2.56805562,2052.1,2050.3,2.49803643]
[1772624225857,2.56805562,2051.9,2050.3,2.49803643]
[1772624226052,2.81942386,2051.8,2050.3,2.49803643]